bitfinex/quotes_SOLUSD_20251126
["timestamp","ask_amount","ask_price","bid_price","bid_amount"]
[1764168394711,8.80994492,137.19,137.15,12.89037533]
[1764168395025,8.80994492,137.24,137.18,12.89037533]
[1764168395202,12.89037533,137.23,137.17,3.28]
[1764168395407,8.80994492,137.21,137.18,7.28969237]
[1764168395923,3.81264752,137.26,137.2,12.89037533]
[1764168396208,16.17037533,137.27,137.22,12.89037533]
[1764168396533,8.80994492,137.26,137.23,0.72]
[1764168397045,12.89037533,137.26,137.21,13.61037533]
[1764168397241,8.80994492,137.25,137.21,13.61037533]
[1764168397540,8.80994492,137.25,137.22,8.0075674]
[1764168397935,8.80994492,137.25,137.22,7.2875674]
[1764168398235,21.70032025,137.23,137.2,7.28815729]
[1764168398548,8.80994492,137.23,137.2,7.28815729]
[1764168398710,10.5659656,137.26,137.2,7.28815729]
[1764168398711,9.48994492,137.25,137.2,7.28815729]
[1764168398910,12.89037533,137.24,137.2,7.28815729]
[1764168399114,8.80994492,137.25,137.21,13.61037533]
[1764168399330,8.80994492,137.25,137.22,7.2875674]
[1764168399532,22.38032025,137.25,137.21,7.28797489]
[1764168400039,21.70032025,137.25,137.21,26.22822122]
[1764168400217,8.80994492,137.25,137.22,0.72]
[1764168400415,8.80994492,137.25,137.21,38.39859655]
[1764168400416,8.80994492,137.25,137.21,39.11859655]
[1764168400736,21.70032025,137.25,137.21,25.50822122]
[1764168400930,21.70032025,137.23,137.2,7.28848275]
[1764168401125,22.38032025,137.23,137.2,7.28848275]
[1764168401316,22.38032025,137.23,137.2,8.00848275]
[1764168401317,8.80994492,137.23,137.2,8.00848275]
[1764168401514,8.80994492,137.23,137.2,26.23005709]
[1764168401741,8.80994492,137.23,137.2,7.28848275]
[1764168402115,21.70032025,137.23,137.2,7.28848275]
[1764168402322,8.80994492,137.23,137.2,7.28848275]
[1764168402520,21.70032025,137.25,137.2,39.12043242]
[1764168403037,22.38032025,137.25,137.2,39.12043242]
[1764168403623,8.80994492,137.25,137.21,13.61037533]
[1764168404137,8.80994492,137.27,137.24,12.89037533]
[1764168404525,8.80994492,137.27,137.22,3.99]
[1764168404526,8.80994492,137.27,137.22,3.28]
[1764168404721,8.80994492,137.25,137.21,16.88037533]
[1764168404920,8.80994492,137.22,137.2,25.51005709]
[1764168405139,8.80994492,137.22,137.19,7.28910126]
[1764168405325,8.80994492,137.22,137.2,0.71]
[1764168405521,8.80994492,137.22,137.21,7.28809853]
[1764168406040,8.80994492,137.22,137.2,7.28850709]
[1764168406639,8.80994492,137.22,137.19,7.28895353]
[1764168406952,21.70032025,137.23,137.19,7.28895353]
[1764168407130,8.80994492,137.23,137.19,39.1122314]
[1764168408549,8.80994492,137.23,137.19,38.4022314]
[1764168408763,8.80994492,137.23,137.2,13.60037533]
[1764168409551,8.80994492,137.23,137.21,7.28809853]
[1764168409729,8.80994492,137.23,137.21,7.99809853]
[1764168409931,8.80994492,137.23,137.21,7.28809853]
[1764168410973,0.68,137.22,137.2,10.56846584]
[1764168411132,0.68,137.22,137.2,7.28846584]
[1764168411537,0.68,137.22,137.18,34.39409053]
[1764168411735,0.68,137.22,137.19,7.28916101]
[1764168411954,8.80994492,137.23,137.19,39.11243888]
[1764168412127,8.80994492,137.24,137.2,13.60037533]
[1764168412672,8.80994492,137.24,137.2,12.89037533]
[1764168412836,8.80994492,137.24,137.22,12.89037533]
[1764168413271,8.80994492,137.24,137.22,13.60037533]
[1764168413751,8.80994492,137.24,137.23,7.28703636]
[1764168414365,8.80994492,137.25,137.23,7.28703636]
[1764168417337,8.80994492,137.26,137.23,39.10500259]
[1764168417540,8.80994492,137.26,137.24,0.71]
[1764168418171,0.68,137.25,137.22,7.2875268]
[1764168418331,8.80994492,137.24,137.22,7.2875268]
[1764168418977,8.80994492,137.24,137.21,34.38980162]
[1764168418978,9.48994492,137.24,137.21,10.56790782]
[1764168419137,8.80994492,137.22,137.2,7.28840567]
[1764168420173,16.308864,137.24,137.2,39.11035534]
[1764168420470,8.80994492,137.23,137.2,39.11035534]
[1764168420638,8.80994492,137.2,137.14,0.71]
[1764168420843,8.80994492,137.2,137.17,7.37683796]
[1764168421274,8.80994492,137.2,137.17,8.08683796]
[1764168421471,8.80994492,137.24,137.19,7.37683796]
[1764168421661,8.80994492,137.24,137.2,7.37683796]
[1764168421858,8.05683796,137.23,137.15,0.99432314]
[1764168422052,16.18678288,137.21,137.16,7.37683796]
[1764168422260,16.18678288,137.21,137.17,7.2902238]
[1764168422474,8.80994492,137.21,137.18,7.37683796]
[1764168422667,3.96,137.23,137.19,8.08683796]
[1764168422873,0.68,137.28,137.22,7.37683796]
[1764168423187,7.37683796,137.27,137.22,10.65683796]
[1764168423363,8.80994492,137.26,137.22,10.65683796]
[1764168423552,8.80994492,137.26,137.22,11.36683796]
[1764168423962,8.80994492,137.26,137.23,0.71]
[1764168424164,8.80994492,137.26,137.23,8.08683796]
[1764168424360,8.80994492,137.26,137.24,7.28650539]
[1764168424974,8.80994492,137.26,137.24,7.99650539]
[1764168425173,8.80994492,137.26,137.24,7.28650539]
[1764168425478,9.49994492,137.26,137.24,7.28650539]
[1764168425665,8.80994492,137.24,137.21,10.56778268]
[1764168426045,9.49994492,137.24,137.21,10.56778268]
[1764168426465,8.80994492,137.24,137.21,32.88486697]
[1764168426751,9.49994492,137.24,137.21,7.28778268]
[1764168427150,8.80994492,137.22,137.21,7.28778268]
[1764168427366,8.80994492,137.22,137.18,3.28]
[1764168427367,8.80994492,137.22,137.2,7.28844603]
[1764168427681,12.08994492,137.25,137.21,8.06683796]
[1764168428177,12.77994492,137.25,137.21,0.69]
[1764168428361,12.08994492,137.25,137.2,32.88685833]
[1764168428681,12.08994492,137.25,137.21,0.69]
[1764168428975,12.08994492,137.25,137.21,8.06683796]
[1764168429175,8.06683796,137.24,137.2,7.28844603]
[1764168429773,24.37570196,137.24,137.2,7.28844603]
[1764168430158,7.37683796,137.22,137.17,25.60164054]
[1764168430363,8.80994492,137.21,137.17,25.51502638]
[1764168430547,40.47374651,137.21,137.17,7.2902238]
[1764168430752,8.80994492,137.19,137.16,7.29055578]
[1764168431061,19.46678288,137.19,137.15,7.29115043]
[1764168431381,8.80994492,137.17,137.15,7.29115043]
[1764168431553,16.18678288,137.17,137.13,7.29195958]
[1764168431756,8.80994492,137.15,137.12,7.29271322]
[1764168431974,0.69,137.14,137.12,7.29271322]
[1764168432177,0.69,137.14,137.11,7.29321383]
[1764168432493,8.06683796,137.14,137.1,7.29394602]
[1764168432658,8.80994492,137.12,137.09,10.57425717]
[1764168432860,8.80994492,137.12,137.09,7.29425717]
[1764168433074,9.49994492,137.12,137.09,7.29425717]
[1764168433254,8.80994492,137.14,137.1,8.06683796]
[1764168433461,8.80994492,137.14,137.11,7.37683796]
[1764168433670,8.80994492,137.14,137.11,8.06683796]
[1764168433951,8.80994492,137.12,137.09,25.53045237]
[1764168434153,8.80994492,137.12,137.09,7.29425717]
[1764168434453,8.80994492,137.12,137.09,15.36109513]
[1764168434659,8.80994492,137.12,137.09,33.59729033]
[1764168434960,8.06683796,137.11,137.08,7.29480133]
[1764168435167,8.06683796,137.11,137.05,3.97]
[1764168435381,8.80994492,137.09,137.06,14.67291267]
[1764168435878,12.08994492,137.12,137.08,7.37683796]
[1764168436083,1.99999999,137.23,137.11,7.37683796]
[1764168436262,0.69,137.24,137.19,7.37683796]
[1764168436461,0.69,137.27,137.21,32.88518282]
[1764168436671,0.69,137.28,137.21,25.50834486]
[1764168436870,0.69,137.28,137.23,7.37683796]
[1764168437076,7.37683796,137.28,137.23,7.37683796]
[1764168437383,23.68570196,137.28,137.23,11.34683796]
[1764168437557,7.37683796,137.26,137.21,25.50834486]
[1764168437758,3.97,137.27,137.21,3.28]
[1764168437960,8.80994492,137.24,137.21,3.28]
[1764168438370,8.80994492,137.24,137.21,10.65683796]
[1764168438569,3.28,137.27,137.22,15.35440536]
[1764168438793,16.87678288,137.26,137.22,7.2875674]
[1764168439086,8.80994492,137.24,137.22,7.2875674]
[1764168440097,16.308864,137.26,137.23,8.06683796]
[1764168440590,16.308864,137.26,137.24,7.28650539]
[1764168441403,8.80994492,137.27,137.24,26.19276887]
[1764168441554,16.308864,137.28,137.24,33.56960683]
[1764168441753,8.80994492,137.27,137.24,7.97650539]
[1764168441958,8.80994492,137.27,137.24,7.28650539]
[1764168442191,8.80994492,137.27,137.24,25.50276887]
[1764168442558,8.80994492,137.27,137.24,18.21626348]
[1764168444494,8.80994492,137.27,137.24,26.28310144]
[1764168444871,16.308864,137.28,137.25,8.06683796]
[1764168445377,16.308864,137.28,137.24,25.50276887]
[1764168445378,9.49994492,137.27,137.24,25.50276887]
[1764168445705,44.79660553,137.29,137.25,0.69]
[1764168445991,8.80994492,137.28,137.25,0.69]
[1764168446171,8.80994492,137.28,137.25,8.06683796]
[1764168446495,44.79660553,137.29,137.25,8.06683796]
[1764168447067,44.79660553,137.29,137.26,7.28544368]
[1764168447470,44.79660553,137.29,137.26,26.18905288]
[1764168447674,8.80994492,137.28,137.26,7.28544368]
[1764168447886,8.80994492,137.26,137.22,10.5675674]
[1764168448207,8.80994492,137.23,137.2,18.22105543]
[1764168448693,8.80994492,137.21,137.19,7.28890235]
[1764168448905,16.18678288,137.21,137.16,7.37683796]
[1764168449065,16.18678288,137.19,137.14,25.60579814]
[1764168449266,16.18678288,137.19,137.16,7.37683796]
[1764168449267,8.80994492,137.19,137.16,7.37683796]
[1764168449474,8.80994492,137.17,137.14,25.52077875]
[1764168449771,8.80994492,137.17,137.15,7.37683796]
[1764168449984,10.65683796,137.2,137.15,7.37683796]
[1764168449985,8.80994492,137.19,137.15,7.37683796]
[1764168450190,9.49994492,137.19,137.15,7.37683796]
[1764168450492,8.80994492,137.19,137.17,7.37683796]
[1764168450790,3.28,137.2,137.18,7.37683796]
[1764168450999,8.80994492,137.21,137.18,7.37683796]
[1764168451292,0.69,137.2,137.17,7.2902238]
[1764168451682,8.80994492,137.19,137.17,7.2902238]
[1764168451884,32.49564688,137.19,137.14,7.37683796]
[1764168452083,16.87678288,137.18,137.13,14.66918828]
[1764168452274,3.28,137.17,137.13,14.66918828]
[1764168452488,3.97,137.17,137.13,14.66918828]
[1764168452701,9.49994492,137.16,137.12,7.29285209]
[1764168453010,9.49994492,137.16,137.12,32.90189541]
[1764168453220,0.69,137.15,137.12,14.66969005]
[1764168453501,0.69,137.15,137.11,7.29331713]
[1764168453502,16.18678288,137.14,137.11,7.29331713]
[1764168453684,19.46678288,137.14,137.11,7.29331713]
[1764168453883,12.77994492,137.14,137.11,7.29331713]
[1764168454080,12.08994492,137.14,137.11,32.9036902]
[1764168454275,12.77994492,137.14,137.11,14.67015509]
[1764168454469,12.77994492,137.14,137.11,7.29331713]
[1764168454873,36.43517096,137.24,137.11,7.29331713]
[1764168454874,44.79660553,137.29,137.16,16.308864]
[1764168455081,44.79660553,137.29,137.2,23.68570196]
[1764168455277,1.73134242,137.29,137.28,31.06253992]
[1764168455476,0.2,137.36,137.31,16.308864]
[1764168455477,1e-08,137.36,137.31,16.308864]
[1764168455689,1e-08,137.39,137.36,9.09426806]
[1764168455882,6.3980049,137.4,137.37,3.56432314]
[1764168456094,6.3980049,137.4,137.39,7.37683796]
[1764168456399,6.3980049,137.4,137.38,7.37683796]
[1764168456892,6.3980049,137.4,137.37,10.9411611]
[1764168457290,6.3980049,137.4,137.38,7.27907992]
[1764168457679,6.3980049,137.4,137.39,7.6611611]
[1764168458085,6.3980049,137.4,137.39,0.28432314]
[1764168458399,6.3980049,137.4,137.39,10.9411611]
[1764168458704,6.3980049,137.4,137.39,3.28]
[1764168459096,1e-08,137.4,137.39,10.9411611]
[1764168459401,1e-08,137.4,137.39,18.21971121]
[1764168461112,1e-08,137.4,137.39,10.55855011]
[1764168461273,1e-08,137.4,137.35,7.37683796]
[1764168461477,1e-08,137.4,137.36,3.28]
[1764168461478,0.69000001,137.4,137.36,3.28]
[1764168462210,1e-08,137.4,137.36,3.28]
[1764168462408,1e-08,137.4,137.37,7.37683796]
[1764168462620,1e-08,137.4,137.39,23.68570196]
[1764168462779,28.65522772,137.51,137.47,25.11880892]
[1764168463104,0.1,137.6,137.48,3.28]
[1764168463105,0.69,137.59,137.48,3.28]
[1764168463307,0.1,137.6,137.53,7.37683796]
[1764168463511,0.1,137.6,137.59,7.37683796]
[1764168463673,1e-08,137.6,137.59,10.9611611]
[1764168463881,1e-08,137.6,137.57,7.37683796]
[1764168464099,1e-08,137.6,137.58,3.58432314]
[1764168464417,1e-08,137.6,137.56,10.9611611]
[1764168464729,1e-08,137.6,137.58,7.6611611]
[1764168464885,85.28758504,137.62,137.58,10.9611611]
[1764168465419,85.96758504,137.62,137.59,7.26797005]
[1764168465605,85.28758504,137.62,137.59,25.43789518]
[1764168465807,85.28758504,137.62,137.59,32.81473314]
[1764168466225,0.68,137.61,137.57,7.2686046]
[1764168466719,0.68,137.61,137.58,3.3]
[1764168466920,0.68,137.61,137.57,7.2686046]
[1764168467301,0.68,137.61,137.55,29.13634729]
[1764168467302,0.68,137.61,137.56,25.44344285]
[1764168467522,0.68,137.61,137.56,32.82028081]
[1764168467821,101.59644904,137.62,137.58,7.37683796]
[1764168467822,85.28758504,137.62,137.58,7.37683796]
[1764168468028,85.28758504,137.62,137.59,7.37683796]
[1764168468229,85.28758504,137.62,137.6,0.28432314]
[1764168468735,85.28758504,137.62,137.58,3.3]
[1764168468902,85.96758504,137.62,137.58,3.3]
[1764168469419,85.96758504,137.62,137.59,7.26797005]
[1764168469734,85.28758504,137.62,137.59,7.26797005]
[1764168469939,0.68,137.61,137.58,10.56844158]
[1764168470293,0.68,137.61,137.58,7.26846442]
[1764168470294,8.05683796,137.61,137.58,7.26846442]
[1764168470536,0.68,137.61,137.58,7.26846442]
[1764168470713,0.68,137.6,137.58,7.26846442]
[1764168470911,0.68,137.6,137.55,28.83133136]
[1764168471122,0.68,137.6,137.56,25.44344285]
[1764168471305,8.80994492,137.59,137.56,7.2695551]
[1764168471500,0.68,137.6,137.55,7.37683796]
[1764168471702,16.308864,137.61,137.56,7.6611611]
[1764168472027,16.988864,137.61,137.56,7.6611611]
[1764168472202,16.988864,137.61,137.54,61.80020356]
[1764168472203,0.68,137.6,137.55,0.28432314]
[1764168472407,16.308864,137.61,137.55,7.6611611]
[1764168472615,16.988864,137.61,137.56,7.37683796]
[1764168472814,24.36570196,137.61,137.55,7.6611611]
[1764168473018,16.988864,137.61,137.55,7.6611611]
[1764168473214,85.28758504,137.62,137.57,7.37683796]
[1764168473505,85.28758504,137.62,137.59,25.43789518]
[1764168473708,85.96758504,137.62,137.59,25.43789518]
[1764168475123,85.28758504,137.62,137.59,25.43789518]
[1764168475306,85.96758504,137.62,137.59,25.43789518]
[1764168475732,85.96758504,137.62,137.59,18.16992513]
[1764168475928,85.96758504,137.62,137.56,3.28]
[1764168475929,16.86678288,137.61,137.56,3.28]
[1764168476133,7.37683796,137.6,137.57,7.26902528]
[1764168476313,7.37683796,137.6,137.54,10.65683796]
[1764168476314,8.80994492,137.59,137.55,7.2700836]
[1764168476518,16.86678288,137.59,137.55,7.2700836]
[1764168476717,7.37683796,137.57,137.55,7.2700836]
[1764168477331,0.68,137.57,137.55,7.2700836]
[1764168477630,0.68,137.57,137.52,7.37683796]
[1764168477631,0.68,137.56,137.52,18.17912054]
[1764168477819,8.80994492,137.58,137.53,14.6479788]
[1764168478015,9.48994492,137.58,137.53,7.27114084]
[1764168478224,16.308864,137.59,137.54,7.37683796]
[1764168478418,8.80994492,137.58,137.54,3.28]
[1764168478606,9.48994492,137.58,137.54,3.28]
[1764168479131,16.308864,137.59,137.54,3.28]
[1764168479328,0.68,137.6,137.55,0.28432314]
[1764168479518,16.18678288,137.58,137.54,3.28]
[1764168479727,8.80994492,137.58,137.55,7.2700836]
[1764168479910,0.68,137.59,137.55,7.2700836]
[1764168480110,0.68,137.59,137.55,25.44529261]
[1764168480315,8.80994492,137.61,137.56,7.37683796]
[1764168480641,7.37683796,137.57,137.55,7.2700836]
[1764168480845,85.28758504,137.62,137.56,11.38379347]
[1764168481144,85.28758504,137.62,137.61,7.37683796]
[1764168481306,85.28758504,137.62,137.6,3.28]
[1764168481504,1e-08,137.62,137.61,32.77997002]
[1764168481728,1e-08,137.64,137.63,23.85904487]
[1764168481928,1e-08,137.64,137.63,10.54585773]
[1764168482432,1e-08,137.64,137.63,7.26585773]
[1764168482837,0.68000001,137.64,137.6,12.76517637]
[1764168483013,8.80994492,137.63,137.59,23.33314642]
[1764168483210,0.68000001,137.64,137.6,12.76517637]
[1764168483535,1e-08,137.64,137.62,12.76517637]
[1764168483718,1e-08,137.64,137.63,7.26585773]
[1764168484238,1e-08,137.64,137.59,21.46963863]
[1764168484537,8.80994492,137.63,137.6,25.43586189]
[1764168484841,21.57512129,137.63,137.59,10.56778228]
[1764168485041,0.68,137.62,137.59,10.56778228]
[1764168485245,0.68,137.62,137.59,7.26778228]
[1764168485426,0.68,137.62,137.59,38.20288378]
[1764168485815,1e-08,137.64,137.6,12.76517637]
[1764168486111,1e-08,137.64,137.62,12.76517637]
[1764168487315,0.72000001,137.64,137.6,3.28]
[1764168487617,0.72000001,137.64,137.61,12.76517637]
[1764168487823,0.72000001,137.64,137.61,20.03169864]
[1764168488141,8.80994492,137.63,137.6,3.28]
[1764168488317,8.80994492,137.63,137.59,18.16992513]
[1764168488519,0.72,137.62,137.6,7.26728423]
[1764168488724,0.72,137.62,137.59,7.26789589]
[1764168489125,21.57512129,137.61,137.57,7.26894861]
[1764168489341,0.72,137.6,137.57,38.20669167]
[1764168489839,0.72,137.6,137.57,7.26894861]
[1764168490041,12.76517637,137.58,137.55,7.26989796]
[1764168490346,8.80994492,137.59,137.55,7.26989796]
[1764168490347,21.57512129,137.59,137.55,7.26989796]
[1764168490517,0.72,137.58,137.55,7.26989796]
[1764168490853,0.72,137.59,137.55,38.21028334]
[1764168491414,0.72,137.59,137.55,25.44510697]
[1764168491612,9.52994492,137.59,137.55,25.44510697]
[1764168492141,0.72,137.58,137.55,25.44510697]
[1764168492353,1e-08,137.64,137.57,12.76517637]
[1764168492515,1e-08,137.64,137.56,16.45102557]
[1764168492516,1e-08,137.64,137.63,13.04949951]
[1764168492721,2.08393882,137.73,137.67,16.308864]
[1764168492922,1e-08,137.73,137.72,13.04949951]
[1764168493138,1e-08,137.74,137.73,0.28432314]
[1764168493445,1e-08,137.74,137.73,13.04949951]
[1764168493653,1e-08,137.74,137.7,0.28432314]
[1764168493822,1e-08,137.74,137.72,7.26110949]
[1764168494016,1e-08,137.74,137.72,20.02628586]
[1764168494242,0.69000001,137.74,137.72,20.02628586]
[1764168494822,1e-08,137.74,137.72,20.02628586]
[1764168495023,0.69,137.73,137.71,20.02664475]
[1764168495223,0.69,137.73,137.71,7.26146838]
[1764168495428,0.69,137.73,137.69,3.3]
[1764168495639,12.76517637,137.71,137.66,16.06517637]
[1764168495933,0.69,137.73,137.71,7.26163677]
[1764168496144,0.69,137.72,137.66,3.44216157]
[1764168496443,0.69,137.72,137.68,12.76517637]
[1764168496651,9.49994492,137.72,137.68,12.76517637]
[1764168497123,9.49994492,137.72,137.67,25.42311324]
[1764168497124,0.69,137.71,137.67,25.42311324]
[1764168497328,0.69,137.71,137.68,12.76517637]
[1764168497527,0.69,137.7,137.69,12.76517637]
[1764168497824,12.76517637,137.73,137.67,38.18828961]
[1764168498049,0.69000001,137.74,137.71,12.76517637]
[1764168498222,1e-08,137.74,137.72,16.06517637]
[1764168498427,1e-08,137.74,137.73,13.04949951]
[1764168498629,1e-08,137.76,137.75,0.28432314]
[1764168498864,127.68008106,137.85,137.75,32.65836351]
[1764168499125,0.69,137.83,137.75,3.58432314]
[1764168499328,0.69,137.83,137.74,3.3]
[1764168499329,12.76517637,137.82,137.74,3.3]
[1764168499557,29.07404037,137.81,137.75,12.76517637]
[1764168499732,29.07404037,137.81,137.74,3.3]
[1764168499935,0.19,137.8,137.76,7.25900116]
[1764168500152,0.19,137.8,137.76,20.02417753]
[1764168500350,12.76517637,137.84,137.77,3.58432314]
[1764168500681,127.68008106,137.85,137.79,12.76517637]
[1764168500962,131.22376869,137.85,137.77,4.08432314]
[1764168501167,8.80994492,137.84,137.77,3.8]
[1764168501352,131.22376869,137.85,137.77,3.8]
[1764168501353,131.22376869,137.85,137.79,12.76517637]
[1764168501531,114.91490469,137.85,137.8,12.76517637]
[1764168501836,114.91490469,137.85,137.82,38.16061969]
[1764168502041,114.91490469,137.85,137.83,12.76517637]
[1764168502236,114.91490469,137.85,137.84,12.76517637]
[1764168502537,114.91490469,137.85,137.83,12.76517637]
[1764168502742,0.69,137.84,137.82,7.25584095]
[1764168502932,0.69,137.84,137.81,7.25621159]
[1764168503254,114.91490469,137.85,137.83,12.76517637]
[1764168503449,114.91490469,137.85,137.81,25.39713024]
[1764168503656,114.91490469,137.85,137.84,12.76517637]
[1764168503862,114.91490469,137.85,137.84,20.01996453]
[1764168504036,115.60490469,137.85,137.81,20.02154383]
[1764168504237,0.69,137.84,137.81,7.25636746]
[1764168504436,0.69,137.84,137.81,20.02154383]
[1764168504649,0.69,137.84,137.81,7.25636746]
[1764168504850,0.69,137.84,137.8,16.06517637]
[1764168504851,0.69,137.84,137.8,7.25682669]
[1764168505034,8.80994492,137.8,137.75,7.25952813]
[1764168505236,8.80994492,137.8,137.76,12.76517637]
[1764168505435,21.57512129,137.78,137.75,7.25952813]
[1764168505636,8.80994492,137.78,137.75,7.25952813]
[1764168505862,0.69,137.77,137.75,7.25952813]
[1764168506165,0.69,137.8,137.76,12.76517637]
[1764168506535,0.69,137.8,137.75,12.76517637]
[1764168506743,13.45517637,137.8,137.74,38.17453281]
[1764168507062,13.45517637,137.8,137.75,12.76517637]
[1764168507276,0.69,137.82,137.76,3.3]
[1764168507436,13.45517637,137.82,137.77,12.76517637]
[1764168507844,12.76517637,137.8,137.76,3.3]
[1764168508054,12.76517637,137.8,137.77,7.25847426]
[1764168508256,21.57512129,137.78,137.68,0.5]
[1764168508459,8.80994492,137.76,137.7,30.92058668]
[1764168508670,8.80994492,137.76,137.7,18.15541031]
[1764168508835,12.76517637,137.74,137.7,18.15541031]
[1764168509035,16.75517637,137.75,137.7,30.92058668]
[1764168509338,0.69,137.74,137.7,18.15541031]
[1764168509536,13.45517637,137.74,137.69,12.76517637]
[1764168509735,13.45517637,137.74,137.68,38.18644306]
[1764168509939,0.69,137.74,137.71,12.76517637]
[1764168510180,0.69,137.8,137.74,0.14216157]
[1764168510466,128.97856453,137.96,137.84,0.14216157]
[1764168510768,78.59672475,137.96,137.9,12.76517637]
[1764168510940,41.00356034,137.96,137.95,12.76517637]
[1764168511235,2.0582438,138.02,137.96,0.28432314]
[1764168511439,0.69,138.01,137.95,3.32]
[1764168511640,12.76517637,138.0,137.94,12.76517637]
[1764168511837,12.76517637,138.0,137.93,25.65928808]
[1764168512041,0.69,137.99,137.95,12.76517637]
[1764168512238,0.69,137.99,137.93,20.01523074]
[1764168512239,16.77517637,137.99,137.93,20.01523074]
[1764168512674,0.69,137.98,137.93,20.07598505]
[1764168513170,16.308864,137.94,137.86,3.32]
[1764168513351,16.308864,137.94,137.89,12.82593068]
[1764168513671,0.69,137.93,137.9,7.25163161]
[1764168513890,13.51593068,137.93,137.88,7.25233589]
[1764168514051,12.82593068,137.91,137.87,7.25317026]
[1764168514570,0.69,137.9,137.87,7.25317026]
[1764168514959,0.69,137.93,137.89,12.82593068]
[1764168515271,0.69,137.96,137.92,12.82593068]
[1764168515472,0.69,137.96,137.93,12.82593068]
[1764168515676,0.69,137.95,137.9,12.82593068]
[1764168515860,0.69,137.95,137.92,12.82593068]
[1764168516058,0.69,137.95,137.91,12.82593068]
[1764168516355,0.69,137.95,137.87,3.32]
[1764168516356,12.82593068,137.92,137.87,7.25320954]
[1764168516556,0.69,137.91,137.87,38.21216408]
[1764168516867,16.308864,137.94,137.89,12.82593068]
[1764168516868,29.82479468,137.94,137.89,12.82593068]
[1764168517055,16.998864,137.94,137.89,12.82593068]
[1764168517259,0.69,137.93,137.89,12.82593068]
[1764168517668,12.82593068,137.9,137.82,36.27679826]
[1764168517850,16.14593068,137.9,137.84,12.82593068]
[1764168518055,0.69,137.89,137.84,12.82593068]
[1764168518267,0.69,137.89,137.83,7.25531451]
[1764168518268,16.308864,137.94,137.83,25.3933531]
[1764168518584,1.99999999,138.19,138.0,8.80994492]
[1764168518894,50.24036711,138.2,138.06,12.82593068]
[1764168518895,0.69,138.14,138.06,12.82593068]
[1764168519093,157.79588419,138.18,138.07,3.32]
[1764168519373,157.10588419,138.18,138.17,12.96809225]
[1764168519549,170.62181487,138.18,138.12,12.82593068]
[1764168519753,12.82593068,138.14,138.08,16.45025382]
[1764168520089,0.69,138.17,138.08,12.82593068]
[1764168520248,12.82593068,138.14,138.08,12.82593068]
[1764168520663,0.69,138.13,138.08,12.82593068]
[1764168520884,0.69,138.13,138.07,12.82593068]
[1764168521053,0.69,138.13,138.08,12.82593068]
[1764168521249,0.69,138.16,138.09,3.34]
[1764168521457,0.69,138.16,138.12,12.82593068]
[1764168521668,0.69,138.16,138.13,7.23955693]
[1764168522776,29.13479468,138.14,138.06,3.34]
[1764168523088,12.82593068,138.11,138.06,3.34]
[1764168523594,12.82593068,138.09,138.03,41.52273716]
[1764168523758,13.51593068,138.1,138.05,7.24375226]
[1764168523956,0.69,138.09,138.05,25.35313291]
[1764168524158,13.51593068,138.09,138.05,7.24375226]
[1764168524558,13.52593068,138.08,138.05,7.24375226]
[1764168524970,0.7,138.07,138.05,7.24375226]
[1764168525384,12.82593068,138.06,138.03,7.24427883]
[1764168525689,13.52593068,138.1,138.04,12.82593068]
[1764168525886,0.7,138.09,138.04,12.82593068]
[1764168526180,13.52593068,138.09,138.03,38.18221414]
[1764168526385,12.82593068,138.07,138.03,25.35628346]
[1764168526681,12.82593068,138.07,138.03,7.24427883]
[1764168526993,0.7,138.06,138.03,7.24427883]
[1764168527682,13.52593068,138.06,138.0,20.07194827]
[1764168527856,13.52593068,138.06,138.0,7.24601759]
[1764168528063,12.82593068,138.04,138.0,7.24601759]
[1764168528474,0.7,138.03,138.0,7.24601759]
[1764168528684,0.7,138.03,138.0,25.36195961]
[1764168528988,0.7,138.07,138.02,12.82593068]
[1764168529196,0.7,138.07,138.03,12.82593068]
[1764168529396,13.52593068,138.07,138.0,61.59384366]
[1764168529875,13.52593068,138.06,138.0,74.41977434]
[1764168530411,0.7,138.12,138.05,12.82593068]
[1764168530597,0.7,138.16,138.11,12.82593068]
[1764168530780,12.82593068,138.14,138.06,3.34]
[1764168530965,12.82593068,138.13,138.06,3.34]
[1764168531287,12.82593068,138.13,138.07,12.82593068]
[1764168531462,0.7,138.15,138.1,12.82593068]
[1764168531874,0.7,138.15,138.11,7.24060531]
[1764168532074,0.7,138.15,138.11,38.16804927]
[1764168532389,0.7,138.15,138.11,25.34211859]
[1764168532682,0.7,138.15,138.12,12.82593068]
[1764168532890,0.7,138.15,138.11,25.34211859]